Workbook

Sheet Ark1
A1: Oversigt over kontraktforløb i Ribe Amts Indkøbsforening:
A3: Indtastninger: | D3: Omkostninger:
A4: Købssum: | B4: 150000 | D4: Provision: | E4: =IF((G5<500),500,(IF((G5>4000),4000,G5))) -> 500
A5: Afdragstid år: | B5: 5 | D5: Udbetaling: | E5: =IF((G6<1),0,G6) -> 0
A6: Rentesats: | B6: 2.5 | D6: Moms: | E6: =(B4*0.25)+(E4*0.25)-(B9*0.25) -> 31375
A7: Terminer pr. år: | B7: 4
A8: Udbetaling %: | B8: 20
A9: Værdi af maskine givet i bytte | B9: 25000 | D9: Betaling ved underskrift: | E9: =SUM(E4:E6) -> 31875
A13: Afdragsoversigt:
B14: Rente | C14: Afdrag | D14: Ydelse | E14: Restgæld
A15: Lån: | E15: =B4-E5-B9 -> 125000
A16: 1. termin | B16: =IF((E15<>""),(E15*$B$6/100/$B$7),"") -> 781.25 | C16: =IF((E15>0),($E$15/(B$5*B$7)),0) -> 6250 | D16: =IF((E15>0),(C16+B16),"") -> 7031.25 | E16: =IF((E15-C16)>0,(E15-C16),0) -> 118750
A17: 2. termin | B17: 742.1875 | C17: 6250 | D17: =IF((E16>0),(C17+B17),"") -> 6992.1875 | E17: =IF((E16-C17)>0,(E16-C17),0) -> 112500
A18: 3. termin | B18: 703.125 | C18: 6250 | D18: 6953.125 | E18: 106250
A19: 4. termin | B19: 664.0625 | C19: 6250 | D19: 6914.0625 | E19: 100000
A20: 5. termin | B20: 625 | C20: 6250 | D20: 6875 | E20: 93750
A21: 6. termin | B21: 585.9375 | C21: 6250 | D21: 6835.9375 | E21: 87500
A22: 7. termin | B22: 546.875 | C22: 6250 | D22: 6796.875 | E22: 81250
A23: 8. termin | B23: 507.8125 | C23: 6250 | D23: 6757.8125 | E23: 75000
A24: 9. termin | B24: 468.75 | C24: 6250 | D24: 6718.75 | E24: 68750
A25: 10. termin | B25: 429.6875 | C25: 6250 | D25: 6679.6875 | E25: 62500
A26: 11. termin | B26: 390.625 | C26: 6250 | D26: 6640.625 | E26: 56250
A27: 12. termin | B27: 351.5625 | C27: 6250 | D27: 6601.5625 | E27: 50000
A28: 13. termin | B28: 312.5 | C28: 6250 | D28: 6562.5 | E28: 43750
A29: 14. termin | B29: 273.4375 | C29: 6250 | D29: 6523.4375 | E29: 37500
A30: 15. termin | B30: 234.375 | C30: 6250 | D30: 6484.375 | E30: 31250
A31: 16. termin | B31: 195.3125 | C31: 6250 | D31: 6445.3125 | E31: 25000
A32: 17. termin | B32: 156.25 | C32: 6250 | D32: 6406.25 | E32: 18750
A33: 18. termin | B33: 117.1875 | C33: 6250 | D33: 6367.1875 | E33: 12500
A34: 19. termin | B34: 78.125 | C34: 6250 | D34: 6328.125 | E34: 6250
A35: 20. termin | B35: 39.0625 | C35: 6250 | D35: 6289.0625 | E35: 0
A36: 21. termin | B36: 0 | C36: 0 | E36: 0
A37: 22. termin | B37: 0 | C37: 0 | E37: 0
A38: 23. termin | B38: 0 | C38: 0 | E38: 0
A39: 24. termin | B39: 0 | C39: 0 | E39: 0
A40: 25. termin | B40: 0 | C40: 0 | E40: 0
A41: 26. termin | B41: 0 | C41: 0 | E41: 0
A42: 27. termin | B42: 0 | C42: 0 | E42: 0
A43: 28. termin | B43: 0 | C43: 0 | D43: =IF((E42>0),(C43+B43),"") ->  | E43: =IF((E42-C43)>0,(E42-C43),0) -> 0
A45: Samlet betaling incl. provision: | D45: =SUM(D16:D44)+E4 -> 133703.125
A46: Samlede omkostninger incl. provision: | D46: =D45-E15 -> 8703.125
